[Event "FRA-ch Youth U18W 2019"]
[Site "Hyeres"]
[Date "2019.04.18"]
[Round "6.4"]
[White "Spano, Aline"]
[Black "Conti, Anne-Marie"]
[Result "0-1"]
[ECO "B01"]
[WhiteElo "1419"]
[BlackElo "1809"]
[Annotator "NA"]
[PlyCount "62"]
[EventDate "2019.04.14"]
[EventType "swiss"]
[EventCountry "FRA"]
[SourceTitle "playchess.com"]
[Source "ChessBase"]
[SourceQuality "1"]
[TimeControl "5400+30"]

1. e4 {[%emt 0:00:00]} d5 {[%emt 0:00:00]} 2. exd5 {[%emt 0:00:31]} Qxd5 {[%emt 0:00:00]} 3. Nc3 {[%emt 0:00:12]} Qd6 {[%emt 0:00:00]} 4. d4 {[%emt 0:01:28]} Nf6 {[%emt 0:00:11]} 5. Bc4 {[%emt 0:02:00]} g6 {[%emt 0:00:19]} 6. Nge2 {[%emt 0:08:06]} Bg7 {[%emt 0:05:23]} 7. Bf4 {[%emt 0:01:07]} Qd8 {[%emt 0:00:46]} 8. Nb5 {[%emt 0:04:56]} Na6 {[%emt 0:00:38]} 9. Qd2 {[%emt 0:04:44]} c6 {[%emt 0:06:27]} 10. Nbc3 {[%emt 0:03:34]} Nc7 {[%emt 0:00:30]} 11. Bh6 {[%emt 0:03:10]} O-O {[%emt 0:02:56]} 12. Bxg7 {[%emt 0:10:00]} Kxg7 {[%emt 0:00:08]} 13. O-O {[%emt 0:02:14]} b5 {[%emt 0:09:12]} 14. Bd3 {[%emt 0:06:53]} Ne6 {[%emt 0:01:55]} 15. Be4 {[%emt 0:03:33]} Nxe4 {[%emt 0:03:10]} 16. Nxe4 {[%emt 0:00:07]} f5 {[%emt 0:12:24]} 17. N4g3 {[%emt 0:07:32]} f4 {[%emt 0:02:45]} 18. Qc3 {[%emt 0:11:47]} Qd5 {[%emt 0:14:32]} 19. Nh1 {[%emt 0:07:46]} f3 {[%emt 0:00:54]} 20. gxf3 {[%emt 0:00:26]} Rxf3 {[%emt 0:00:16]} 21. Qd2 {[%emt 0:02:58]} c5 {[%emt 0:01:06]} 22. Rad1 {[%emt 0:05:34]} Bb7 {[%emt 0:01:31]} 23. Neg3 {[%emt 0:04:08]} Rxg3+ {[%emt 0:02:43]} 24. fxg3 {[%emt 0:01:13]} Qxh1+ {[%emt 0:00:06]} 25. Kf2 {[%emt 0:00:08]} Rf8+ {[%emt 0:00:18]} 26. Ke2 {[%emt 0:01:40]} Qg2+ {[%emt 0:00:38]} 27. Kd3 {[%emt 0:02:38]} Rf3+ {[%emt 0:00:31]} 28. Rxf3 {[%emt 0:00:49]} Qxf3+ {[%emt 0:00:04]} 29. Qe3 {[%emt 0:01:08]} Qxd1+ {[%emt 0:00:07]} 30. Qd2 {[%emt 0:00:28]} c4+ {[%emt 0:00:14]} 31. Ke3 {[%emt 0:01:36]} Qf3# {[%emt 0:00:06]} 0-1

[Event "FRA-ch Youth U18W 2019"]
[Site "Hyeres"]
[Date "2019.04.19"]
[Round "7.1"]
[White "Pucheu, Camille"]
[Black "Lomandong, Noela-Joyce"]
[Result "0-1"]
[ECO "B92"]
[WhiteElo "1695"]
[BlackElo "1942"]
[Annotator "NA"]
[PlyCount "126"]
[EventDate "2019.04.14"]
[EventType "swiss"]
[EventCountry "FRA"]
[SourceTitle "playchess.com"]
[Source "ChessBase"]
[SourceQuality "1"]
[TimeControl "5400+30"]

1. e4 {[%emt 0:00:00]} c5 {[%emt 0:00:00]} 2. Nf3 {[%emt 0:00:05]} d6 {[%emt 0:00:00]} 3. d4 {[%emt 0:00:30]} cxd4 {[%emt 0:00:00]} 4. Nxd4 {[%emt 0:00:13]} Nf6 {[%emt 0:00:00]} 5. Nc3 {[%emt 0:00:45]} a6 {[%emt 0:00:00]} 6. Be2 {[%emt 0:01:33]} e5 {[%emt 0:00:33]} 7. Nb3 {[%emt 0:03:52]} Be6 {[%emt 0:00:25]} 8. O-O {[%emt 0:01:38]} Be7 {[%emt 0:02:27]} 9. h3 {[%emt 0:10:58]} Nc6 {[%emt 0:11:49]} 10. Be3 {[%emt 0:02:49]} b5 {[%emt 0:04:04]} 11. Bf3 {[%emt 0:08:04]} Rc8 {[%emt 0:06:44]} 12. Nd5 {[%emt 0:10:28]} O-O {[%emt 0:07:55]} 13. c3 {[%emt 0:03:36]} Bxd5 {[%emt 0:02:13]} 14. exd5 {[%emt 0:00:11]} Na5 {[%emt 0:00:03]} 15. Nxa5 {[%emt 0:16:46]} Qxa5 {[%emt 0:00:07]} 16. Bg5 {[%emt 0:01:43]} h6 {[%emt 0:03:19]} 17. Bxf6 {[%emt 0:02:06]} Bxf6 {[%emt 0:00:16]} 18. a3 {[%emt 0:10:11]} Bg5 {[%emt 0:02:28]} 19. Re1 {[%emt 0:04:46]} Qb6 {[%emt 0:01:09]} 20. Qd3 {[%emt 0:06:39]} f5 {[%emt 0:05:11]} 21. Bh5 {[%emt 0:09:04]} Kh7 {[%emt 0:11:55]} 22. Qg3 {[%emt 0:02:25]} Rc4 {[%emt 0:08:29]} 23. Be2 {[%emt 0:00:48]} Rf4 {[%emt 0:05:11]} 24. Rf1 {[%emt 0:01:06]} Bh4 {[%emt 0:00:52]} 25. Qe3 {[%emt 0:00:06]} Bxf2+ {[%emt 0:04:00]} 26. Qxf2 {[%emt 0:00:05]} Rxf2 {[%emt 0:00:06]} 27. Rxf2 {[%emt 0:00:03]} Qc5 {[%emt 0:01:56]} 28. Rd1 {[%emt 0:01:08]} g5 {[%emt 0:02:30]} 29. Kf1 {[%emt 0:01:38]} Kg6 {[%emt 0:00:55]} 30. g4 {[%emt 0:00:23]} Qe3 {[%emt 0:07:56]} 31. Rf3 {[%emt 0:00:18]} Qxf3+ {[%emt 0:00:55]} 32. Bxf3 {[%emt 0:00:13]} fxg4 {[%emt 0:00:03]} 33. hxg4 {[%emt 0:00:47]} Rxf3+ {[%emt 0:00:02]} 34. Kg2 {[%emt 0:00:10]} Re3 {[%emt 0:01:06]} 35. Rd2 {[%emt 0:00:15]} h5 {[%emt 0:00:42]} 36. gxh5+ {[%emt 0:00:40]} Kxh5 {[%emt 0:00:02]} 37. Kf2 {[%emt 0:00:13]} Rh3 {[%emt 0:00:01]} 38. Kg2 {[%emt 0:00:11]} Kg4 {[%emt 0:01:24]} 39. Re2 {[%emt 0:01:45]} Rd3 {[%emt 0:00:17]} 40. Rc2 {[%emt 0:01:11]} Rxd5 {[%emt 0:00:27]} 41. c4 {[%emt 0:00:22]} Rc5 {[%emt 0:00:07]} 42. b3 {[%emt 0:00:33]} bxc4 {[%emt 0:00:05]} 43. bxc4 {[%emt 0:00:14]} d5 {[%emt 0:00:18]} 44. Rc3 {[%emt 0:00:50]} Rxc4 {[%emt 0:00:15]} 45. Rg3+ {[%emt 0:00:15]} Kf5 {[%emt 0:00:01]} 46. Rf3+ {[%emt 0:00:17]} Rf4 {[%emt 0:00:01]} 47. Rd3 {[%emt 0:00:22]} Ra4 {[%emt 0:00:46]} 48. Rf3+ {[%emt 0:00:30]} Ke6 {[%emt 0:00:01]} 49. Rd3 {[%emt 0:00:43]} e4 {[%emt 0:00:02]} 50. Re3 {[%emt 0:00:37]} Ke5 {[%emt 0:00:06]} 51. Rb3 {[%emt 0:00:42]} d4 {[%emt 0:00:10]} 52. Kf2 {[%emt 0:00:24]} e3+ {[%emt 0:00:01]} 53. Kf3 {[%emt 0:00:32]} g4+ {[%emt 0:00:02]} 54. Ke2 {[%emt 0:00:46]} Ke4 {[%emt 0:00:12]} 55. Kf1 {[%emt 0:00:27]} d3 {[%emt 0:00:06]} 56. Ke1 {[%emt 0:00:27]} d2+ {[%emt 0:00:07]} 57. Ke2 {[%emt 0:00:23]} d1=Q+ {[%emt 0:00:09]} 58. Kxd1 {[%emt 0:00:04]} Kf3 {[%emt 0:00:03]} 59. Ke1 {[%emt 0:01:01]} Rc4 {[%emt 0:00:22]} 60. Rb1 {[%emt 0:00:29]} g3 {[%emt 0:00:06]} 61. Kf1 {[%emt 0:00:26]} Rc3 {[%emt 0:00:27]} 62. Ra1 {[%emt 0:00:25]} e2+ {[%emt 0:00:21]} 63. Kg1 {[%emt 0:00:18]} Rd3 {[%emt 0:00:04]} 0-1

[Event "FRA-ch Youth U18W 2019"]
[Site "Hyeres"]
[Date "2019.04.19"]
[Round "7.2"]
[White "Conti, Anne-Marie"]
[Black "Belluire, Beatrice"]
[Result "0-1"]
[ECO "A37"]
[WhiteElo "1809"]
[BlackElo "1870"]
[Annotator "NA"]
[PlyCount "58"]
[EventDate "2019.04.14"]
[EventType "swiss"]
[EventCountry "FRA"]
[SourceTitle "playchess.com"]
[Source "ChessBase"]
[SourceQuality "1"]
[TimeControl "5400+30"]

1. Nf3 {[%emt 0:00:00]} c5 {[%emt 0:00:00]} 2. g3 {[%emt 0:00:00]} Nc6 {[%emt 0:00:00]} 3. Bg2 {[%emt 0:00:00]} g6 {[%emt 0:00:00]} 4. O-O {[%emt 0:01:42]} Bg7 {[%emt 0:00:00]} 5. c4 {[%emt 0:01:42]} e5 {[%emt 0:00:09]} 6. Nc3 {[%emt 0:01:02]} Nge7 {[%emt 0:00:09]} 7. b3 {[%emt 0:09:38]} O-O {[%emt 0:02:50]} 8. Bb2 {[%emt 0:01:36]} d6 {[%emt 0:00:39]} 9. Ne1 {[%emt 0:05:14]} Be6 {[%emt 0:00:31]} 10. Nc2 {[%emt 0:01:16]} d5 {[%emt 0:00:41]} 11. cxd5 {[%emt 0:00:51]} Nxd5 {[%emt 0:00:02]} 12. Ne4 {[%emt 0:16:34]} b6 {[%emt 0:00:51]} 13. Nc3 {[%emt 0:11:07]} Qd7 {[%emt 0:05:23]} 14. Nxd5 {[%emt 0:06:20]} Bxd5 {[%emt 0:00:06]} 15. Bxd5 {[%emt 0:00:25]} Qxd5 {[%emt 0:00:01]} 16. Ne3 {[%emt 0:00:39]} Qe6 {[%emt 0:07:13]} 17. Rc1 {[%emt 0:02:56]} Rad8 {[%emt 0:03:03]} 18. Nc4 {[%emt 0:04:24]} f5 {[%emt 0:02:26]} 19. f3 {[%emt 0:03:13]} Bh6 {[%emt 0:04:04]} 20. a4 {[%emt 0:04:01]} a6 {[%emt 0:17:20]} 21. Kf2 {[%emt 0:02:48]} b5 {[%emt 0:11:15]} 22. axb5 {[%emt 0:00:06]} axb5 {[%emt 0:00:04]} 23. Ne3 {[%emt 0:00:11]} f4 {[%emt 0:02:05]} 24. gxf4 {[%emt 0:00:28]} Bxf4 {[%emt 0:00:31]} 25. d3 {[%emt 0:15:36]} Qh3 {[%emt 0:05:27]} 26. Ng2 {[%emt 0:04:09]} Bxh2 {[%emt 0:10:29]} 27. Rh1 {[%emt 0:01:27]} Qg3+ {[%emt 0:00:19]} 28. Kf1 {[%emt 0:00:33]} e4 {[%emt 0:05:08]} 29. Ne1 {[%emt 0:03:45]} e3 {[%emt 0:01:01]} 0-1

[Event "FRA-ch Youth U18W 2019"]
[Site "Hyeres"]
[Date "2019.04.19"]
[Round "7.3"]
[White "Rollot, Florence"]
[Black "Bellahcene, Meriem"]
[Result "0-1"]
[ECO "D00"]
[WhiteElo "1975"]
[BlackElo "1883"]
[Annotator "NA"]
[PlyCount "70"]
[EventDate "2019.04.14"]
[EventType "swiss"]
[EventCountry "FRA"]
[SourceTitle "playchess.com"]
[Source "ChessBase"]
[SourceQuality "1"]
[TimeControl "5400+30"]

1. d4 {[%emt 0:00:00]} d5 {[%emt 0:00:00]} 2. Nc3 {[%emt 0:00:00]} e6 {[%emt 0:00:11]} 3. Bf4 {[%emt 0:00:02]} c6 {[%emt 0:01:23]} 4. e3 {[%emt 0:01:50]} Nf6 {[%emt 0:01:52]} 5. Bd3 {[%emt 0:03:17]} Be7 {[%emt 0:01:32]} 6. Nf3 {[%emt 0:01:47]} Nbd7 {[%emt 0:01:28]} 7. O-O {[%emt 0:04:10]} O-O {[%emt 0:00:35]} 8. h3 {[%emt 0:05:13]} a6 {[%emt 0:03:48]} 9. Ne5 {[%emt 0:08:42]} c5 {[%emt 0:02:44]} 10. Nxd7 {[%emt 0:06:00]} Nxd7 {[%emt 0:02:37]} 11. dxc5 {[%emt 0:04:18]} Nxc5 {[%emt 0:01:33]} 12. Rb1 {[%emt 0:14:22]} Nxd3 {[%emt 0:02:22]} 13. Qxd3 {[%emt 0:02:10]} b5 {[%emt 0:10:19]} 14. a3 {[%emt 0:07:38]} Bb7 {[%emt 0:01:41]} 15. Rfd1 {[%emt 0:01:37]} Qb6 {[%emt 0:05:22]} 16. Be5 {[%emt 0:36:54]} Qc6 {[%emt 0:05:07]} 17. f3 {[%emt 0:00:00]} Rac8 {[%emt 0:05:11]} 18. Bd4 {[%emt 0:00:00]} f6 {[%emt 0:04:16]} 19. e4 {[%emt 0:00:00]} dxe4 {[%emt 0:00:29]} 20. Qxe4 {[%emt 0:00:00]} Qxe4 {[%emt 0:02:50]} 21. fxe4 {[%emt 0:00:00]} Rfd8 {[%emt 0:11:32]} 22. Bf2 {[%emt 0:00:00]} Kf7 {[%emt 0:02:41]} 23. Be1 {[%emt 0:01:11]} e5 {[%emt 0:06:46]} 24. b4 {[%emt 0:00:48]} Rd4 {[%emt 0:05:19]} 25. Kf2 {[%emt 0:01:43]} Rcd8 {[%emt 0:01:36]} 26. Ke3 {[%emt 0:00:16]} f5 {[%emt 0:01:13]} 27. exf5 {[%emt 0:00:44]} Bxg2 {[%emt 0:00:44]} 28. h4 {[%emt 0:00:08]} Bh3 {[%emt 0:02:09]} 29. Bg3 {[%emt 0:00:33]} Bxf5 {[%emt 0:01:43]} 30. Rf1 {[%emt 0:00:26]} Ke6 {[%emt 0:00:29]} 31. Rf2 {[%emt 0:01:03]} Bxh4 {[%emt 0:01:55]} 32. Bxh4 {[%emt 0:00:31]} Rxh4 {[%emt 0:00:01]} 33. Rb3 {[%emt 0:00:34]} Rh3+ {[%emt 0:00:53]} 34. Rf3 {[%emt 0:00:29]} Rxf3+ {[%emt 0:00:13]} 35. Kxf3 {[%emt 0:00:01]} Bxc2 {[%emt 0:14:56]} 0-1

[Event "FRA-ch Youth U18W 2019"]
[Site "Hyeres"]
[Date "2019.04.20"]
[Round "8.1"]
[White "Bellahcene, Meriem"]
[Black "Lomandong, Noela-Joyce"]
[Result "0-1"]
[ECO "B23"]
[WhiteElo "1883"]
[BlackElo "1942"]
[Annotator "NA"]
[PlyCount "85"]
[EventDate "2019.04.14"]
[EventType "swiss"]
[EventCountry "FRA"]
[SourceTitle "playchess.com"]
[Source "ChessBase"]
[SourceQuality "1"]
[TimeControl "5400+30"]

1. e4 {[%emt 0:00:00]} c5 {[%emt 0:03:37]} 2. Nc3 {[%emt 0:00:00]} b6 {[%emt 0:00:51]} 3. d3 {[%emt 0:00:10]} Bb7 {[%emt 0:00:21]} 4. g3 {[%emt 0:01:53]} e6 {[%emt 0:02:02]} 5. Bg2 {[%emt 0:00:22]} Be7 {[%emt 0:00:23]} 6. f4 {[%emt 0:01:15]} Nf6 {[%emt 0:03:56]} 7. Nf3 {[%emt 0:00:36]} d5 {[%emt 0:01:44]} 8. Qe2 {[%emt 0:03:56]} O-O {[%emt 0:03:21]} 9. O-O {[%emt 0:01:07]} a6 {[%emt 0:11:34]} 10. a4 {[%emt 0:07:31]} Nc6 {[%emt 0:05:03]} 11. h3 {[%emt 0:04:24]} Nd4 {[%emt 0:06:40]} 12. Nxd4 {[%emt 0:02:50]} cxd4 {[%emt 0:00:02]} 13. Nd1 {[%emt 0:00:32]} dxe4 {[%emt 0:01:53]} 14. dxe4 {[%emt 0:00:49]} Rc8 {[%emt 0:05:49]} 15. Re1 {[%emt 0:13:18]} Bb4 {[%emt 0:07:24]} 16. c3 {[%emt 0:01:00]} dxc3 {[%emt 0:01:24]} 17. Nxc3 {[%emt 0:00:27]} Bxc3 {[%emt 0:02:53]} 18. bxc3 {[%emt 0:00:05]} Rxc3 {[%emt 0:00:23]} 19. Qf2 {[%emt 0:09:15]} Qc7 {[%emt 0:03:57]} 20. Rb1 {[%emt 0:09:49]} Rc8 {[%emt 0:12:56]} 21. Bb2 {[%emt 0:14:38]} Rc2 {[%emt 0:00:59]} 22. Qe3 {[%emt 0:01:11]} Rxg2+ {[%emt 0:01:07]} 23. Kxg2 {[%emt 0:00:06]} Bxe4+ {[%emt 0:00:05]} 24. Kg1 {[%emt 0:01:43]} Bxb1 {[%emt 0:03:05]} 25. Rxb1 {[%emt 0:00:04]} Nd5 {[%emt 0:01:15]} 26. Qf2 {[%emt 0:02:11]} Qc2 {[%emt 0:03:28]} 27. Rc1 {[%emt 0:02:29]} Qxf2+ {[%emt 0:00:32]} 28. Kxf2 {[%emt 0:00:05]} Rxc1 {[%emt 0:00:45]} 29. Bxc1 {[%emt 0:00:02]} Nc3 {[%emt 0:01:19]} 30. a5 {[%emt 0:00:04]} bxa5 {[%emt 0:00:36]} 31. Ke3 {[%emt 0:00:22]} f5 {[%emt 0:03:54]} 32. Kd3 {[%emt 0:02:18]} Ne4 {[%emt 0:00:18]} 33. g4 {[%emt 0:01:58]} Nf2+ {[%emt 0:02:55]} 34. Ke3 {[%emt 0:00:30]} Ne4 {[%emt 0:01:36]} 35. gxf5 {[%emt 0:00:36]} exf5 {[%emt 0:00:01]} 36. Kd4 {[%emt 0:00:15]} Kf7 {[%emt 0:00:45]} 37. Ke5 {[%emt 0:00:59]} g6 {[%emt 0:00:57]} 38. Ba3 {[%emt 0:01:22]} Nf2 {[%emt 0:00:38]} 39. Kd5 {[%emt 0:00:13]} Nxh3 {[%emt 0:00:24]} 40. Bd6 {[%emt 0:00:02]} Nf2 {[%emt 0:00:28]} 41. Kc4 {[%emt 0:00:18]} h5 {[%emt 0:00:13]} 42. Bc5 {[%emt 0:01:14]} Ng4 {[%emt 0:00:35]} 43. Kd4 {[%emt 0:19:31]} 0-1

[Event "FRA-ch Youth U18W 2019"]
[Site "Hyeres"]
[Date "2019.04.20"]
[Round "8.2"]
[White "Belluire, Beatrice"]
[Black "Pucheu, Camille"]
[Result "1-0"]
[ECO "B38"]
[WhiteElo "1870"]
[BlackElo "1695"]
[Annotator "NA"]
[PlyCount "101"]
[EventDate "2019.04.14"]
[EventType "swiss"]
[EventCountry "FRA"]
[SourceTitle "playchess.com"]
[Source "ChessBase"]
[SourceQuality "1"]
[TimeControl "5400+30"]

1. e4 {[%emt 0:00:00]} c5 {[%emt 0:00:00]} 2. Nf3 {[%emt 0:00:00]} d6 {[%emt 0:00:00]} 3. d4 {[%emt 0:00:00]} cxd4 {[%emt 0:00:01]} 4. Nxd4 {[%emt 0:00:00]} Nf6 {[%emt 0:00:12]} 5. f3 {[%emt 0:00:00]} g6 {[%emt 0:00:31]} 6. c4 {[%emt 0:00:03]} Bg7 {[%emt 0:00:55]} 7. Nc3 {[%emt 0:00:01]} O-O {[%emt 0:01:07]} 8. Be3 {[%emt 0:00:02]} Nc6 {[%emt 0:00:48]} 9. Be2 {[%emt 0:00:01]} Bd7 {[%emt 0:01:27]} 10. O-O {[%emt 0:00:04]} a6 {[%emt 0:02:00]} 11. Qd2 {[%emt 0:00:17]} Rc8 {[%emt 0:00:33]} 12. b3 {[%emt 0:00:01]} Qc7 {[%emt 0:12:32]} 13. Rac1 {[%emt 0:01:52]} Qb8 {[%emt 0:05:21]} 14. Rfd1 {[%emt 0:06:21]} Nxd4 {[%emt 0:06:00]} 15. Bxd4 {[%emt 0:00:05]} b5 {[%emt 0:00:22]} 16. Bxf6 {[%emt 0:08:21]} exf6 {[%emt 0:29:21]} 17. Qxd6 {[%emt 0:01:26]} Qa7+ {[%emt 0:00:04]} 18. Qd4 {[%emt 0:16:00]} Qxd4+ {[%emt 0:02:14]} 19. Rxd4 {[%emt 0:00:01]} Bh6 {[%emt 0:00:10]} 20. Rxd7 {[%emt 0:08:25]} Bxc1 {[%emt 0:00:45]} 21. Nd5 {[%emt 0:00:43]} Kg7 {[%emt 0:01:12]} 22. Nc7 {[%emt 0:03:27]} Kg8 {[%emt 0:04:05]} 23. Kf2 {[%emt 0:08:18]} Rfd8 {[%emt 0:02:13]} 24. Rxd8+ {[%emt 0:00:09]} Rxd8 {[%emt 0:00:03]} 25. Nd5 {[%emt 0:00:10]} Kg7 {[%emt 0:05:00]} 26. cxb5 {[%emt 0:00:08]} axb5 {[%emt 0:00:34]} 27. Bxb5 {[%emt 0:00:10]} Ba3 {[%emt 0:02:37]} 28. Ke3 {[%emt 0:01:23]} Rb8 {[%emt 0:00:45]} 29. Bc4 {[%emt 0:00:19]} Bd6 {[%emt 0:05:37]} 30. h3 {[%emt 0:02:06]} Rb7 {[%emt 0:02:19]} 31. a4 {[%emt 0:01:01]} Ra7 {[%emt 0:01:15]} 32. Bb5 {[%emt 0:00:16]} Ra8 {[%emt 0:01:08]} 33. Kd3 {[%emt 0:01:19]} Rb8 {[%emt 0:00:26]} 34. b4 {[%emt 0:01:12]} Rd8 {[%emt 0:05:01]} 35. Kc3 {[%emt 0:01:58]} Rc8+ {[%emt 0:08:26]} 36. Bc4 {[%emt 0:00:15]} Be5+ {[%emt 0:01:29]} 37. Kb3 {[%emt 0:00:15]} Rb8 {[%emt 0:00:26]} 38. a5 {[%emt 0:00:24]} Bd4 {[%emt 0:00:40]} 39. b5 {[%emt 0:00:47]} Ra8 {[%emt 0:00:24]} 40. a6 {[%emt 0:00:23]} Rb8 {[%emt 0:00:58]} 41. Kb4 {[%emt 0:00:25]} Bf2 {[%emt 0:00:37]} 42. b6 {[%emt 0:00:30]} Bxb6 {[%emt 0:00:42]} 43. Nxb6 {[%emt 0:00:02]} Rxb6+ {[%emt 0:00:06]} 44. Kc5 {[%emt 0:00:03]} Rb1 {[%emt 0:00:56]} 45. a7 {[%emt 0:00:27]} Ra1 {[%emt 0:00:11]} 46. Kb6 {[%emt 0:00:01]} Rb1+ {[%emt 0:00:48]} 47. Bb5 {[%emt 0:00:01]} Ra1 {[%emt 0:00:17]} 48. Ba6 {[%emt 0:00:26]} Rb1+ {[%emt 0:00:25]} 49. Kc5 {[%emt 0:00:04]} Rc1+ {[%emt 0:00:15]} 50. Kb4 {[%emt 0:00:08]} Rb1+ {[%emt 0:01:04]} 51. Kc3 {[%emt 0:00:02]} 1-0

[Event "FRA-ch Youth U18W 2019"]
[Site "Hyeres"]
[Date "2019.04.20"]
[Round "8.3"]
[White "Breysse, Astrid"]
[Black "Conti, Anne-Marie"]
[Result "1-0"]
[ECO "B32"]
[WhiteElo "1628"]
[BlackElo "1809"]
[Annotator "NA"]
[PlyCount "75"]
[EventDate "2019.04.14"]
[EventType "swiss"]
[EventCountry "FRA"]
[SourceTitle "playchess.com"]
[Source "ChessBase"]
[SourceQuality "1"]
[TimeControl "5400+30"]

1. e4 {[%emt 0:00:00]} c5 {[%emt 0:00:00]} 2. Nf3 {[%emt 0:00:00]} Nc6 {[%emt 0:00:00]} 3. d4 {[%emt 0:00:19]} cxd4 {[%emt 0:00:06]} 4. Nxd4 {[%emt 0:00:06]} e5 {[%emt 0:00:11]} 5. Nb5 {[%emt 0:00:13]} d6 {[%emt 0:00:09]} 6. N1c3 {[%emt 0:00:23]} a6 {[%emt 0:00:06]} 7. Na3 {[%emt 0:00:04]} b5 {[%emt 0:00:03]} 8. Nd5 {[%emt 0:00:06]} Nge7 {[%emt 0:00:06]} 9. c4 {[%emt 0:03:35]} Nd4 {[%emt 0:00:15]} 10. Be3 {[%emt 0:07:44]} Nxd5 {[%emt 0:00:12]} 11. cxd5 {[%emt 0:00:13]} g6 {[%emt 0:06:27]} 12. Bxd4 {[%emt 0:05:41]} exd4 {[%emt 0:00:05]} 13. Qxd4 {[%emt 0:00:08]} Rg8 {[%emt 0:00:02]} 14. Be2 {[%emt 0:01:05]} Bg7 {[%emt 0:00:45]} 15. Qd2 {[%emt 0:01:49]} Ra7 {[%emt 0:02:55]} 16. O-O {[%emt 0:02:22]} h5 {[%emt 0:04:31]} 17. Rac1 {[%emt 0:02:13]} Re7 {[%emt 0:11:00]} 18. Rfe1 {[%emt 0:04:13]} Bb7 {[%emt 0:05:51]} 19. b3 {[%emt 0:04:15]} Kf8 {[%emt 0:14:27]} 20. Bd3 {[%emt 0:05:37]} h4 {[%emt 0:14:56]} 21. h3 {[%emt 0:06:08]} Rh8 {[%emt 0:03:31]} 22. Nc2 {[%emt 0:03:13]} f6 {[%emt 0:08:22]} 23. Nd4 {[%emt 0:10:52]} Kf7 {[%emt 0:02:45]} 24. Ne6 {[%emt 0:03:27]} Qb8 {[%emt 0:00:50]} 25. Rc2 {[%emt 0:04:11]} Bh6 {[%emt 0:00:41]} 26. f4 {[%emt 0:03:29]} Bc8 {[%emt 0:02:01]} 27. Qf2 {[%emt 0:10:33]} Bxe6 {[%emt 0:01:22]} 28. dxe6+ {[%emt 0:00:06]} Rxe6 {[%emt 0:01:08]} 29. Qxh4 {[%emt 0:02:28]} Bg7 {[%emt 0:01:45]} 30. Qf2 {[%emt 0:00:28]} Rhe8 {[%emt 0:01:18]} 31. Rc6 {[%emt 0:03:31]} f5 {[%emt 0:02:18]} 32. Rxa6 {[%emt 0:04:17]} fxe4 {[%emt 0:00:29]} 33. f5 {[%emt 0:03:29]} gxf5 {[%emt 0:01:57]} 34. Qxf5+ {[%emt 0:00:15]} Rf6 {[%emt 0:05:06]} 35. Qd5+ {[%emt 0:01:23]} Kf8 {[%emt 0:00:10]} 36. Rxe4 {[%emt 0:00:49]} Rc8 {[%emt 0:00:26]} 37. Kh2 {[%emt 0:01:49]} Rf7 {[%emt 0:00:48]} 38. Qxd6+ {[%emt 0:01:44]} 1-0

[Event "FRA-ch Youth U18W 2019"]
[Site "Hyeres"]
[Date "2019.04.21"]
[Round "9.1"]
[White "Lomandong, Noela-Joyce"]
[Black "Breysse, Astrid"]
[Result "1/2-1/2"]
[ECO "A00"]
[WhiteElo "1942"]
[BlackElo "1628"]
[Annotator "NA"]
[PlyCount "66"]
[EventDate "2019.04.14"]
[EventType "swiss"]
[EventCountry "FRA"]
[SourceTitle "playchess.com"]
[Source "ChessBase"]
[SourceQuality "1"]
[TimeControl "5400+30"]

1. b4 {[%emt 0:01:51]} Nf6 {[%emt 0:00:27]} 2. Bb2 {[%emt 0:00:19]} d5 {[%emt 0:02:11]} 3. Nf3 {[%emt 0:00:22]} g6 {[%emt 0:02:54]} 4. e3 {[%emt 0:01:59]} Bg7 {[%emt 0:04:38]} 5. Be2 {[%emt 0:00:13]} O-O {[%emt 0:00:08]} 6. O-O {[%emt 0:02:19]} Bf5 {[%emt 0:01:17]} 7. Nd4 {[%emt 0:02:48]} Bd7 {[%emt 0:03:16]} 8. f4 {[%emt 0:10:11]} e6 {[%emt 0:06:51]} 9. d3 {[%emt 0:16:07]} Nc6 {[%emt 0:10:43]} 10. Nxc6 {[%emt 0:00:58]} Bxc6 {[%emt 0:01:11]} 11. Nd2 {[%emt 0:00:32]} Qe7 {[%emt 0:01:32]} 12. a4 {[%emt 0:10:01]} Rfd8 {[%emt 0:06:19]} 13. b5 {[%emt 0:12:27]} Be8 {[%emt 0:02:12]} 14. g4 {[%emt 0:02:20]} Nxg4 {[%emt 0:11:46]} 15. Ba3 {[%emt 0:07:03]} Qh4 {[%emt 0:05:01]} 16. Bxg4 {[%emt 0:00:06]} Bxa1 {[%emt 0:00:06]} 17. Qxa1 {[%emt 0:00:46]} Qxg4+ {[%emt 0:00:07]} 18. Kh1 {[%emt 0:00:02]} Qe2 {[%emt 0:08:50]} 19. f5 {[%emt 0:14:15]} d4 {[%emt 0:09:42]} 20. Ne4 {[%emt 0:04:01]} Qxe3 {[%emt 0:08:35]} 21. Bc1 {[%emt 0:01:00]} Qh3 {[%emt 0:01:39]} 22. Bg5 {[%emt 0:00:05]} exf5 {[%emt 0:02:23]} 23. Nf6+ {[%emt 0:03:39]} Kf8 {[%emt 0:01:31]} 24. Qd1 {[%emt 0:04:47]} f4 {[%emt 0:03:28]} 25. Rxf4 {[%emt 0:00:23]} Rd6 {[%emt 0:01:54]} 26. Rh4 {[%emt 0:02:33]} Qf5 {[%emt 0:00:36]} 27. Nxh7+ {[%emt 0:01:17]} Kg7 {[%emt 0:00:06]} 28. Bf4 {[%emt 0:01:01]} Re6 {[%emt 0:03:23]} 29. Ng5 {[%emt 0:00:21]} Rf6 {[%emt 0:01:00]} 30. Nh7 {[%emt 0:00:14]} Re6 {[%emt 0:00:05]} 31. Ng5 {[%emt 0:00:04]} Rf6 {[%emt 0:00:04]} 32. Nh7 {[%emt 0:00:15]} Re6 {[%emt 0:00:02]} 33. Ng5 {[%emt 0:00:07]} Rf6 {[%emt 0:00:06]} 1/2-1/2